[Event "NJSK 2026 Jeugd C"]
[Site "Helmond, Netherlands"]
[Date "2026.04.26"]
[Round "2.16"]
[White "Nair, Pranav Prasobh"]
[Black "Roersma, Dylan"]
[Result "1/2-1/2"]
[TimeControl "90min/40moves + 30sec/move"]
[WhiteTitle "-"]
[BlackTitle "-"]
[WhiteFideId "40109135"]
[BlackFideId "1097393"]
[WhiteElo "1747"]
[BlackElo "1846"]

1. e4 {[%clk 01:30:58]} {[%emt 00:00:03]} c5 {[%clk 01:30:44]} {[%emt
00:00:15]} 2. Nf3 {[%clk 01:31:16]} {[%emt 00:00:11]} Nc6 {[%clk 01:31:02]}
{[%emt 00:00:12]} 3. Bb5 {[%clk 01:31:40]} {[%emt 00:00:05]} g6 {[%clk
01:31:19]} {[%emt 00:00:14]} 4. O-O {[%clk 01:31:56]} {[%emt 00:00:14]} Bg7
{[%clk 01:31:43]} {[%emt 00:00:06]} 5. Re1 {[%clk 01:32:20]} {[%emt 00:00:05]}
d6 {[%clk 01:30:18]} {[%emt 00:01:56]} 6. c3 {[%clk 01:32:23]} {[%emt
00:00:27]} Bg4 {[%clk 01:24:49]} {[%emt 00:05:58]} 7. h3 {[%clk 01:31:31]}
{[%emt 00:01:23]} Bxf3 {[%clk 01:24:36]} {[%emt 00:00:43]} 8. Qxf3 {[%clk
01:31:53]} {[%emt 00:00:07]} e5 {[%clk 01:22:10]} {[%emt 00:02:56]} 9. Bxc6+
{[%clk 01:29:34]} {[%emt 00:02:49]} bxc6 {[%clk 01:21:36]} {[%emt 00:01:05]} 10.
Na3 {[%clk 01:27:04]} {[%emt 00:03:00]} Ne7 {[%clk 01:20:56]} {[%emt 00:01:10]}
11. Nc4 {[%clk 01:26:51]} {[%emt 00:00:43]} O-O {[%clk 01:15:08]} {[%emt
00:06:18]} 12. d3 {[%clk 01:25:26]} {[%emt 00:01:55]} h6 {[%clk 01:12:56]}
{[%emt 00:02:42]} 13. Qg3 {[%clk 01:20:36]} {[%emt 00:05:18]} Qd7 {[%clk
01:01:53]} {[%emt 00:11:35]} 14. f4 {[%clk 01:16:29]} {[%emt 00:04:37]} exf4
{[%clk 00:59:13]} {[%emt 00:03:10]} 15. Bxf4 {[%clk 01:16:49]} {[%emt
00:00:10]} d5 {[%clk 00:55:10]} {[%emt 00:04:34]} 16. exd5 {[%clk 01:13:35]}
{[%emt 00:03:43]} cxd5 {[%clk 00:50:30]} {[%emt 00:05:10]} 17. Ne5 {[%clk
01:13:25]} {[%emt 00:00:39]} Qb7 {[%clk 00:32:08]} {[%emt 00:18:53]} 18. Qf2
{[%clk 01:06:56]} {[%emt 00:06:58]} Rac8 {[%clk 00:26:29]} {[%emt 00:06:10]} 19.
Ng4 {[%clk 00:52:08]} {[%emt 00:15:17]} h5 {[%clk 00:22:04]} {[%emt 00:04:56]}
20. Nh6+ {[%clk 00:24:04]} {[%emt 00:28:34]} Bxh6 {[%clk 00:05:22]} {[%emt
00:17:13]} 21. Bxh6 {[%clk 00:24:25]} {[%emt 00:00:07]} Rfe8 {[%clk 00:05:21]}
{[%emt 00:00:32]} 22. Re5 {[%clk 00:18:00]} {[%emt 00:06:55]} f5 {[%clk
00:01:50]} {[%emt 00:04:01]} 23. Rae1 {[%clk 00:15:38]} {[%emt 00:02:51]} Qd7
{[%clk 00:01:42]} {[%emt 00:00:39]} 24. Qe2 {[%clk 00:11:57]} {[%emt 00:04:11]}
Kf7 {[%clk 00:01:46]} {[%emt 00:00:26]} 25. Re6 {[%clk 00:07:37]} {[%emt
00:04:50]} Nc6 {[%clk 00:01:26]} {[%emt 00:00:50]} 26. Rxe8 {[%clk 00:05:27]}
{[%emt 00:02:40]} Rxe8 {[%clk 00:01:48]} {[%emt 00:00:08]} 27. Qxe8+ {[%clk
00:05:49]} Qxe8 {[%clk 00:02:13]} {[%emt 00:00:13]} 28. Rxe8 {[%clk 00:06:07]}
Kxe8 {[%clk 00:02:40]} {[%emt 00:00:15]} 29. Be3 {[%clk 00:06:03]} {[%emt
00:00:33]} d4 {[%clk 00:02:51]} {[%emt 00:00:20]} 30. cxd4 {[%clk 00:06:10]}
{[%emt 00:00:23]} cxd4 {[%clk 00:03:05]} {[%emt 00:00:16]} 31. Bf2 {[%clk
00:06:21]} {[%emt 00:00:18]} Ke7 {[%clk 00:01:07]} {[%emt 00:02:29]} 32. b4
{[%clk 00:05:45]} {[%emt 00:01:06]} Nxb4 {[%clk 00:01:13]} {[%emt 00:00:24]} 33.
Bxd4 {[%clk 00:05:56]} {[%emt 00:00:19]} Nxa2 {[%clk 00:00:41]} {[%emt
00:01:03]} 34. Bxa7 {[%clk 00:06:16]} {[%emt 00:00:10]} Ke6 {[%clk 00:01:03]}
{[%emt 00:00:08]} 35. Kf2 {[%clk 00:06:25]} {[%emt 00:00:19]} Kd5 {[%clk
00:00:49]} {[%emt 00:00:45]} 36. h4 {[%clk 00:06:07]} {[%emt 00:00:48]} Nb4
{[%clk 00:00:42]} {[%emt 00:00:37]} 37. d4 {[%clk 00:06:10]} {[%emt 00:00:27]}
Nc6 {[%clk 00:00:50]} {[%emt 00:00:22]} 38. Bb6 {[%clk 00:05:09]} {[%emt
00:01:31]} Nxd4 {[%clk 00:01:06]} {[%emt 00:00:15]} 39. Ke3 {[%clk 00:04:38]}
{[%emt 00:01:00]} Ne6 {[%clk 00:01:18]} {[%emt 00:00:19]} 40. g3 {[%clk
00:04:47]} {[%emt 00:00:20]} Kc4 {[%clk 00:01:17]} {[%emt 00:00:32]} 41. Ba7
{[%clk 00:04:36]} {[%emt 00:00:40]} Kc3 {[%clk 00:01:16]} {[%emt 00:00:31]} 42.
Bb8 {[%clk 00:04:39]} {[%emt 00:00:27]} Kc2 {[%clk 00:01:22]} {[%emt 00:00:24]}
43. Ke2 {[%clk 00:04:09]} {[%emt 00:01:00]} Nc5 {[%clk 00:00:55]} {[%emt
00:00:58]} 44. Bf4 {[%clk 00:04:05]} {[%emt 00:00:32]} Ne4 {[%clk 00:00:51]}
{[%emt 00:00:35]} 45. Be5 {[%clk 00:03:42]} {[%emt 00:00:53]} Nc5 {[%clk
00:00:41]} {[%emt 00:00:40]} 46. Bc7 {[%clk 00:03:16]} {[%emt 00:00:56]} Kc3
{[%clk 00:00:35]} {[%emt 00:00:37]} 47. Ke3 {[%clk 00:03:19]} {[%emt 00:00:26]}
Ne6 {[%clk 00:00:45]} {[%emt 00:00:21]} 48. Be5+ {[%clk 00:03:36]} {[%emt
00:00:12]} Kc4 {[%clk 00:01:10]} {[%emt 00:00:06]} 49. Bf6 {[%clk 00:03:38]}
{[%emt 00:00:27]} Kd5 {[%clk 00:01:30]} {[%emt 00:00:11]} 50. Bh8 {[%clk
00:03:53]} {[%emt 00:00:13]} Nd8 {[%clk 00:00:48]} {[%emt 00:01:14]} 51. Bf6
{[%clk 00:04:07]} {[%emt 00:00:15]} Nf7 {[%clk 00:01:06]} {[%emt 00:00:12]} 52.
Kf4 {[%clk 00:04:13]} {[%emt 00:00:23]} Ke6 {[%clk 00:01:29]} {[%emt 00:00:08]}
53. Bd4 {[%clk 00:04:16]} {[%emt 00:00:26]} Nd6 {[%clk 00:00:37]} {[%emt
00:01:24]} 54. Bc3 {[%clk 00:04:11]} {[%emt 00:00:33]} Kf7 {[%clk 00:00:57]}
{[%emt 00:00:12]} 55. Be5 {[%clk 00:04:16]} {[%emt 00:00:24]} Ne4 {[%clk
00:00:39]} {[%emt 00:00:47]} 56. Bd4 {[%clk 00:04:11]} {[%emt 00:00:35]} Ke6
{[%clk 00:00:39]} {[%emt 00:00:31]} 57. Bg7 {[%clk 00:04:05]} {[%emt 00:00:35]}
g5+ {[%clk 00:00:33]} {[%emt 00:00:37]} 58. hxg5 {[%clk 00:04:04]} {[%emt
00:00:30]} Kf7 {[%clk 00:00:38]} {[%emt 00:00:26]} 59. Be5 {[%clk 00:02:38]}
{[%emt 00:01:56]} Kg6 {[%clk 00:00:59]} {[%emt 00:00:09]} 60. Bb8 {[%clk
00:02:35]} {[%emt 00:00:32]} Nxg5 {[%clk 00:01:05]} {[%emt 00:00:26]} 61. Ke3
{[%clk 00:02:27]} {[%emt 00:00:37]} Ne6 {[%clk 00:01:21]} {[%emt 00:00:15]} 62.
Kf3 {[%clk 00:02:28]} {[%emt 00:00:27]} Kg5 {[%emt 00:00:22]} 63. Kf2 {[%clk
00:02:29]} {[%emt 00:00:28]} Kg4 {[%clk 00:01:47]} {[%emt 00:00:14]} 64. Kg2
{[%clk 00:02:28]} {[%emt 00:00:31]} Nd4 {[%clk 00:01:07]} {[%emt 00:01:11]} 65.
Kf2 {[%clk 00:02:40]} {[%emt 00:00:16]} Nc6 {[%clk 00:00:43]} {[%emt 00:00:55]}
66. Bc7 {[%clk 00:02:56]} {[%emt 00:00:14]} Ne7 {[%clk 00:00:53]} {[%emt
00:00:20]} 67. Bd6 {[%clk 00:03:03]} {[%emt 00:00:22]} Ng6 {[%clk 00:01:12]}
{[%emt 00:00:12]} 68. Kg2 {[%clk 00:03:11]} {[%emt 00:00:22]} Nh8 {[%clk
00:01:05]} {[%emt 00:00:37]} 69. Be5 {[%clk 00:03:19]} {[%emt 00:00:21]} Nf7
{[%clk 00:01:27]} {[%emt 00:00:09]} 70. Bc7 {[%clk 00:03:33]} {[%emt 00:00:16]}
Ng5 {[%clk 00:01:25]} {[%emt 00:00:32]} 71. Bb8 {[%clk 00:03:37]} {[%emt
00:00:26]} Nf3 {[%clk 00:00:54]} {[%emt 00:01:01]} 72. Bc7 {[%clk 00:03:39]}
{[%emt 00:00:28]} Nd4 {[%clk 00:00:38]} {[%emt 00:00:46]} 73. Bb8 {[%clk
00:03:53]} {[%emt 00:00:16]} Nf3 {[%clk 00:00:32]} {[%emt 00:00:36]} 74. Bc7
{[%clk 00:04:12]} {[%emt 00:00:11]} h4 {[%clk 00:00:45]} {[%emt 00:00:18]} 75.
gxh4 {[%clk 00:04:33]} {[%emt 00:00:07]} Nxh4+ {[%clk 00:00:56]} {[%emt
00:00:20]} 76. Kf2 {[%clk 00:04:50]} {[%emt 00:00:13]} f4 {[%clk 00:01:21]}
{[%emt 00:00:06]} 77. Bxf4 {[%clk 00:05:13]} {[%emt 00:00:07]} Kxf4 {[%clk
00:01:48]} {[%emt 00:00:03]} 1/2-1/2

[Event "NJSK 2026 Jeugd C"]
[Site "Helmond, Netherlands"]
[Date "2026.04.26"]
[Round "2.17"]
[White "Nguyen, Paul"]
[Black "Huang, Ziyang"]
[Result "1/2-1/2"]
[TimeControl "90min/40moves + 30sec/move"]
[WhiteTitle "-"]
[BlackTitle "-"]
[WhiteFideId "1095072"]
[BlackFideId "40105288"]
[WhiteElo "1845"]
[BlackElo "1721"]

1. e4 {[%clk 01:30:57]} {[%emt 00:00:01]} c5 {[%clk 01:30:59]} {[%emt
00:00:02]} 2. Nf3 {[%clk 01:31:19]} {[%emt 00:00:08]} d6 {[%clk 01:31:18]}
{[%emt 00:00:11]} 3. d4 {[%clk 01:31:38]} {[%emt 00:00:10]} cxd4 {[%clk
01:31:44]} {[%emt 00:00:05]} 4. Nxd4 {[%clk 01:32:04]} {[%emt 00:00:03]} Nf6
{[%clk 01:32:06]} {[%emt 00:00:09]} 5. Nc3 {[%clk 01:32:29]} {[%emt 00:00:06]}
g6 {[%clk 01:32:23]} {[%emt 00:00:12]} 6. Be3 {[%clk 01:32:49]} {[%emt
00:00:09]} Bg7 {[%clk 01:32:40]} {[%emt 00:00:13]} 7. f3 {[%clk 01:33:04]}
{[%emt 00:00:16]} O-O {[%clk 01:33:01]} {[%emt 00:00:08]} 8. Qd2 {[%clk
01:33:29]} {[%emt 00:00:05]} Nc6 {[%clk 01:33:26]} {[%emt 00:00:06]} 9. O-O-O
{[%clk 01:33:53]} {[%emt 00:00:06]} d5 {[%clk 01:33:53]} {[%emt 00:00:03]} 10.
exd5 {[%clk 01:34:03]} {[%emt 00:00:19]} Nxd5 {[%clk 01:34:17]} {[%emt
00:00:07]} 11. Nxc6 {[%clk 01:34:07]} {[%emt 00:00:26]} bxc6 {[%clk 01:34:40]}
{[%emt 00:00:07]} 12. Nxd5 {[%clk 01:34:26]} {[%emt 00:00:10]} cxd5 {[%clk
01:35:00]} {[%emt 00:00:10]} 13. Qxd5 {[%clk 01:34:45]} {[%emt 00:00:12]} Qc7
{[%clk 01:35:24]} {[%emt 00:00:06]} 14. Kb1 {[%clk 01:31:22]} {[%emt 00:03:52]}
Be6 {[%clk 01:35:32]} {[%emt 00:00:25]} 15. Qc5 {[%clk 01:31:29]} {[%emt
00:00:21]} Qb7 {[%clk 01:34:22]} {[%emt 00:01:38]} 16. Qb5 {[%clk 01:23:57]}
{[%emt 00:08:03]} Qxb5 {[%clk 01:33:21]} {[%emt 00:01:32]} 17. Bxb5 {[%clk
01:24:16]} {[%emt 00:00:11]} Rab8 {[%clk 01:33:30]} {[%emt 00:00:21]} 18. a4
{[%clk 01:24:08]} {[%emt 00:00:37]} a6 {[%clk 01:32:17]} {[%emt 00:01:43]} 19.
Bxa6 {[%clk 01:22:16]} {[%emt 00:02:22]} Rxb2+ {[%clk 01:27:50]} {[%emt
00:04:57]} 20. Kc1 {[%clk 01:22:37]} {[%emt 00:00:10]} Bf5 {[%clk 01:27:38]}
{[%emt 00:00:42]} 21. Kd2 {[%clk 01:08:06]} {[%emt 00:15:00]} Bxc2 {[%clk
01:26:51]} {[%emt 00:01:17]} 22. Rc1 {[%clk 01:06:41]} {[%emt 00:01:54]} Bxa4+
{[%clk 01:23:27]} {[%emt 00:03:55]} 23. Ke1 {[%clk 01:06:58]} {[%emt 00:00:13]}
Rd8 {[%clk 01:18:03]} {[%emt 00:05:44]} 24. Be2 {[%clk 01:02:56]} {[%emt
00:04:41]} Rdb8 {[%clk 01:14:44]} {[%emt 00:03:42]} 25. Kf2 {[%clk 00:54:09]}
{[%emt 00:09:25]} Bb5 {[%clk 01:11:55]} {[%emt 00:03:19]} 26. Rhe1 {[%clk
00:54:27]} {[%emt 00:00:12]} h5 {[%clk 01:01:15]} {[%emt 00:11:10]} 27. Kf1
{[%clk 00:47:22]} {[%emt 00:07:34]} Bxe2+ {[%clk 01:00:50]} {[%emt 00:00:56]}
28. Rxe2 {[%clk 00:47:46]} {[%emt 00:00:06]} Rxe2 {[%clk 01:01:13]} {[%emt
00:00:07]} 29. Kxe2 {[%clk 00:48:09]} {[%emt 00:00:07]} Be5 {[%clk 01:00:55]}
{[%emt 00:00:48]} 30. f4 {[%clk 00:47:51]} {[%emt 00:00:48]} Bf6 {[%clk
01:00:58]} {[%emt 00:00:28]} 31. Kf3 {[%clk 00:46:50]} {[%emt 00:01:30]} Kg7
{[%clk 01:00:58]} {[%emt 00:00:30]} 32. h3 {[%clk 00:47:10]} {[%emt 00:00:10]}
Rb3 {[%clk 01:01:11]} {[%emt 00:00:17]} 33. Rc4 {[%clk 00:46:36]} {[%emt
00:01:04]} e6 {[%clk 00:58:57]} {[%emt 00:02:44]} 34. g4 {[%clk 00:43:25]}
{[%emt 00:03:40]} Bd8 {[%clk 00:55:35]} {[%emt 00:03:52]} 35. Ke2 {[%clk
00:39:35]} {[%emt 00:04:16]} Bf6 {[%clk 00:53:12]} {[%emt 00:02:57]} 36. g5
{[%clk 00:39:22]} {[%emt 00:00:42]} Bb2 {[%clk 00:51:34]} {[%emt 00:01:24]}
1/2-1/2

[Event "NJSK 2026 Jeugd C"]
[Site "Helmond, Netherlands"]
[Date "2026.04.27"]
[Round "3.1"]
[White "Teianu, Sabin"]
[Black "Koppenens, Oscar"]
[Result "1/2-1/2"]
[TimeControl "90min/40moves + 30sec/move"]
[WhiteTitle "-"]
[BlackTitle "-"]
[WhiteFideId "1095846"]
[BlackFideId "1087940"]
[WhiteElo "2131"]
[BlackElo "2036"]

1. d4 {[%clk 01:30:58]} {[%emt 00:00:02]} d5 {[%clk 01:30:53]} {[%emt
00:00:07]} 2. c4 {[%clk 01:31:22]} {[%emt 00:00:05]} e6 {[%clk 01:31:16]}
{[%emt 00:00:07]} 3. Nf3 {[%clk 01:31:48]} {[%emt 00:00:04]} Nf6 {[%clk
01:31:41]} {[%emt 00:00:07]} 4. Nc3 {[%clk 01:32:09]} {[%emt 00:00:06]} Nbd7
{[%clk 01:32:07]} {[%emt 00:00:05]} 5. Bf4 {[%clk 01:32:32]} {[%emt 00:00:07]}
Bb4 {[%clk 01:32:32]} {[%emt 00:00:05]} 6. cxd5 {[%clk 01:32:57]} {[%emt
00:00:05]} exd5 {[%clk 01:32:59]} {[%emt 00:00:04]} 7. e3 {[%clk 01:33:20]}
{[%emt 00:00:07]} Ne4 {[%clk 01:33:23]} {[%emt 00:00:05]} 8. Qc2 {[%clk
01:33:46]} {[%emt 00:00:04]} g5 {[%clk 01:33:48]} {[%emt 00:00:04]} 9. Be5
{[%clk 01:34:13]} {[%emt 00:00:04]} Nxe5 {[%clk 01:33:24]} {[%emt 00:00:55]} 10.
Nxe5 {[%clk 01:34:35]} {[%emt 00:00:07]} c6 {[%clk 01:33:44]} {[%emt 00:00:10]}
11. Bd3 {[%clk 01:29:16]} {[%emt 00:05:50]} f6 {[%clk 01:33:59]} {[%emt
00:00:15]} 12. Nf3 {[%clk 01:27:35]} {[%emt 00:02:11]} Qe7 {[%clk 01:34:20]}
{[%emt 00:00:08]} 13. Nd2 {[%clk 01:18:07]} {[%emt 00:09:58]} f5 {[%clk
01:33:57]} {[%emt 00:00:53]} 14. Rf1 {[%clk 01:10:48]} {[%emt 00:07:49]} Be6
{[%clk 01:30:15]} {[%emt 00:04:12]} 15. Bxe4 {[%clk 01:10:01]} {[%emt
00:01:17]} fxe4 {[%clk 01:27:36]} {[%emt 00:03:09]} 16. O-O-O {[%clk 01:06:15]}
{[%emt 00:04:16]} O-O-O {[%clk 01:26:27]} {[%emt 00:01:39]} 17. f3 {[%clk
00:54:24]} {[%emt 00:12:22]} exf3 {[%clk 01:26:32]} {[%emt 00:00:25]} 18. gxf3
{[%clk 00:51:17]} {[%emt 00:03:36]} Rhf8 {[%clk 01:23:21]} {[%emt 00:03:42]} 19.
Rde1 {[%clk 00:49:11]} {[%emt 00:02:36]} g4 {[%clk 01:20:35]} {[%emt 00:03:16]}
20. fxg4 {[%clk 00:44:15]} {[%emt 00:05:25]} Bxg4 {[%clk 01:19:33]} {[%emt
00:01:32]} 21. Rxf8 {[%clk 00:35:40]} {[%emt 00:09:05]} Rxf8 {[%clk 01:19:26]}
{[%emt 00:00:37]} 22. Rf1 {[%clk 00:35:27]} {[%emt 00:00:43]} Qxe3 {[%clk
01:14:31]} {[%emt 00:05:26]} 23. Rxf8+ {[%clk 00:35:48]} {[%emt 00:00:09]} Bxf8
{[%clk 01:14:55]} {[%emt 00:00:05]} 24. Qxh7 {[%clk 00:32:51]} {[%emt
00:03:27]} Qxd4 {[%clk 01:12:56]} {[%emt 00:02:30]} 25. Qf7 {[%clk 00:26:00]}
{[%emt 00:07:21]} Bh6 {[%clk 01:02:55]} {[%emt 00:10:31]} 26. Qg8+ {[%clk
00:25:56]} {[%emt 00:00:33]} Kc7 {[%clk 01:03:15]} {[%emt 00:00:10]} 27. Qh7+
{[%clk 00:26:18]} {[%emt 00:00:08]} Qg7 {[%clk 01:03:38]} {[%emt 00:00:06]} 28.
Qxg7+ {[%clk 00:20:35]} {[%emt 00:06:14]} Bxg7 {[%clk 01:04:00]} {[%emt
00:00:08]} 29. Nf1 {[%clk 00:20:46]} {[%emt 00:00:19]} Kd6 {[%clk 01:03:37]}
{[%emt 00:00:54]} 30. Kc2 {[%clk 00:18:58]} {[%emt 00:02:18]} Ke5 {[%clk
01:03:35]} {[%emt 00:00:32]} 31. Ne3 {[%clk 00:18:35]} {[%emt 00:00:53]} Bf3
{[%clk 01:03:05]} {[%emt 00:00:58]} 32. a4 {[%clk 00:11:33]} {[%emt 00:07:35]}
d4 {[%clk 01:02:08]} {[%emt 00:01:26]} 33. Nc4+ {[%clk 00:11:52]} {[%emt
00:00:11]} Kf4 {[%clk 01:01:21]} {[%emt 00:01:15]} 34. Na2 {[%clk 00:11:05]}
{[%emt 00:01:18]} c5 {[%clk 00:58:28]} {[%emt 00:03:23]} 35. Nc1 {[%clk
00:10:37]} {[%emt 00:00:58]} b6 {[%clk 00:57:33]} {[%emt 00:01:26]} 36. Nd3+
{[%clk 00:05:33]} {[%emt 00:05:33]} Ke4 {[%clk 00:57:44]} {[%emt 00:00:19]} 37.
Nd2+ {[%clk 00:04:42]} {[%emt 00:01:22]} Ke3 {[%clk 00:57:41]} {[%emt
00:00:32]} 38. Nf1+ {[%clk 00:05:07]} {[%emt 00:00:06]} Ke4 {[%clk 00:54:37]}
{[%emt 00:03:32]} 39. Nd2+ {[%clk 00:04:32]} {[%emt 00:01:07]} Ke3 {[%clk
00:53:13]} {[%emt 00:01:53]} 40. Nf1+ {[%clk 00:04:56]} {[%emt 00:00:07]} Ke4
{[%clk 00:51:30]} {[%emt 00:02:12]} 41. Nd2+ {[%clk 00:05:02]} {[%emt
00:00:24]} 1/2-1/2

[Event "NJSK 2026 Jeugd C"]
[Site "Helmond, Netherlands"]
[Date "2026.04.27"]
[Round "3.2"]
[White "Blok, Lukas"]
[Black "Guillaumond, Matthieu"]
[Result "0-1"]
[TimeControl "90min/40moves + 30sec/move"]
[WhiteTitle "-"]
[BlackTitle "-"]
[WhiteFideId "40110494"]
[BlackFideId "1097091"]
[WhiteElo "1991"]
[BlackElo "2104"]

1. c4 {[%clk 01:29:13]} {[%emt 00:01:46]} c5 {[%clk 01:30:55]} {[%emt
00:00:06]} 2. Nc3 {[%clk 01:29:38]} {[%emt 00:00:05]} Nc6 {[%clk 01:31:22]}
{[%emt 00:00:04]} 3. g3 {[%clk 01:30:02]} {[%emt 00:00:05]} g6 {[%clk
01:31:47]} {[%emt 00:00:05]} 4. Bg2 {[%clk 01:30:27]} {[%emt 00:00:04]} Bg7
{[%clk 01:32:13]} {[%emt 00:00:05]} 5. e4 {[%clk 01:30:35]} {[%emt 00:00:21]}
a6 {[%clk 01:30:28]} {[%emt 00:02:15]} 6. a4 {[%clk 01:29:16]} {[%emt
00:01:50]} d6 {[%clk 01:30:53]} {[%emt 00:00:06]} 7. Nge2 {[%clk 01:29:39]}
{[%emt 00:00:05]} Nf6 {[%clk 01:31:19]} {[%emt 00:00:05]} 8. O-O {[%clk
01:29:53]} {[%emt 00:00:16]} O-O {[%clk 01:31:43]} {[%emt 00:00:05]} 9. d3
{[%clk 01:27:07]} {[%emt 00:03:16]} Rb8 {[%clk 01:31:47]} {[%emt 00:00:27]} 10.
h3 {[%clk 01:26:13]} {[%emt 00:01:23]} Ne8 {[%clk 01:32:10]} {[%emt 00:00:08]}
11. Be3 {[%clk 01:26:35]} {[%emt 00:00:08]} e5 {[%clk 01:32:36]} {[%emt
00:00:05]} 12. f4 {[%clk 01:16:00]} {[%emt 00:11:04]} exf4 {[%clk 01:32:58]}
{[%emt 00:00:09]} 13. gxf4 {[%clk 01:14:11]} {[%emt 00:02:18]} b5 {[%clk
01:33:22]} {[%emt 00:00:06]} 14. axb5 {[%clk 01:06:25]} {[%emt 00:08:16]} axb5
{[%clk 01:33:47]} {[%emt 00:00:06]} 15. Nxb5 {[%clk 01:05:15]} {[%emt
00:01:39]} Nc7 {[%clk 01:34:11]} {[%emt 00:00:06]} 16. Nec3 {[%clk 00:54:03]}
{[%emt 00:11:41]} Nd4 {[%clk 01:34:20]} {[%emt 00:00:22]} 17. Nxc7 {[%clk
00:52:17]} {[%emt 00:02:15]} Qxc7 {[%clk 01:33:51]} {[%emt 00:01:00]} 18. Nd5
{[%clk 00:51:20]} {[%emt 00:01:26]} Qd8 {[%clk 01:34:15]} {[%emt 00:00:06]} 19.
Rb1 {[%clk 00:49:13]} {[%emt 00:02:37]} Be6 {[%clk 01:31:09]} {[%emt 00:03:36]}
20. Rf2 {[%clk 00:44:50]} {[%emt 00:04:54]} Bxd5 {[%clk 01:30:41]} {[%emt
00:00:57]} 21. cxd5 {[%clk 00:44:28]} {[%emt 00:00:52]} f5 {[%clk 01:25:27]}
{[%emt 00:05:44]} 22. Kh1 {[%clk 00:31:06]} {[%emt 00:13:52]} Rb4 {[%clk
01:16:56]} {[%emt 00:09:01]} 23. Bd2 {[%clk 00:27:33]} {[%emt 00:04:03]} Rb3
{[%clk 01:14:59]} {[%emt 00:02:27]} 24. Bc3 {[%clk 00:26:50]} {[%emt 00:01:14]}
fxe4 {[%clk 01:04:48]} {[%emt 00:10:41]} 25. dxe4 {[%clk 00:26:06]} {[%emt
00:01:14]} Qh4 {[%clk 01:02:56]} {[%emt 00:02:21]} 26. Rf1 {[%clk 00:21:49]}
{[%emt 00:04:47]} g5 {[%clk 00:46:43]} {[%emt 00:16:43]} 27. fxg5 {[%clk
00:15:51]} {[%emt 00:06:27]} Rxf1+ {[%clk 00:47:12]} {[%emt 00:00:02]} 28. Qxf1
{[%clk 00:16:03]} {[%emt 00:00:18]} Be5 {[%clk 00:47:27]} {[%emt 00:00:14]} 29.
g6 {[%clk 00:14:36]} {[%emt 00:01:58]} hxg6 {[%clk 00:47:21]} {[%emt 00:00:36]}
30. Ra1 {[%clk 00:12:33]} {[%emt 00:02:34]} Rb8 {[%clk 00:45:33]} {[%emt
00:02:17]} 31. Be1 {[%clk 00:06:20]} {[%emt 00:06:43]} Qh6 {[%emt 00:09:16]} 32.
Ra3 {[%clk 00:04:58]} Rf8 {[%clk 00:36:23]} {[%emt 00:02:46]} 33. Qd3 {[%clk
00:02:10]} {[%emt 00:03:18]} Nf3 {[%clk 00:13:20]} {[%emt 00:23:34]} 34. Bxf3
{[%clk 00:00:59]} {[%emt 00:01:40]} Qxh3+ {[%clk 00:13:47]} {[%emt 00:00:03]}
35. Kg1 {[%clk 00:01:11]} {[%emt 00:00:18]} Bd4+ {[%clk 00:14:02]} {[%emt
00:00:16]} 36. Bf2 {[%clk 00:01:20]} {[%emt 00:00:20]} Qg3+ {[%clk 00:14:15]}
{[%emt 00:00:17]} 37. Bg2 {[%clk 00:01:34]} {[%emt 00:00:17]} Qxf2+ {[%clk
00:13:59]} {[%emt 00:00:45]} 38. Kh1 {[%clk 00:01:14]} {[%emt 00:00:50]} Qg1#
{[%clk 00:13:42]} {[%emt 00:00:46]} 0-1